Cogmind - Beta 9.6 @@@ ROGUE MODE // 2020.07.31 @ 20:52:34 Player: Alexbot Result: Self-destructed Performance ------------- Evolutions (4) 2000 Regions Visited (7) 1400 Robots Destroyed (8) 40 Value Destroyed (148) 148 Prototype IDs (0) 0 Alien Tech Used (0) 0 Bonus (200) 200 TOTAL SCORE: 3788 Bonus ------- Pacifist 200 Cogmind --------- Core Integrity 763/850 Matter 300/300 Energy 450/450 System Corruption 0% Temperature Cool (0) Movement Flying (440) Ox5 Location -6/Lower Caves Parts ------- > --- POWER (3) -------- Deuterium Engine Deuterium Engine > --- PROPULSION (7) --- Flight Unit > --- UTILITY (3) ------ Coolant Injector Visual Processing Unit > --- WEAPON (2) ------- Heavy Pick > --- INVENTORY (4) ---- Improved Cooling System Large Storage Unit Advanced Signal Interpreter Peak State ------------ > --- POWER ------------ Ion Engine Light Ion Engine Deuterium Engine > --- PROPULSION ------- Flight Unit Flight Unit Flight Unit Flight Unit Xenon Bombardment Thruster > --- UTILITY ---------- Coolant Injector Weight Redist. System Visual Processing Unit > --- WEAPON ----------- Heavy Pick > --- INVENTORY -------- Deuterium Engine Improved Cooling System Large Storage Unit Advanced Signal Interpreter [Rating: 27] Favorites ----------- Power Light Ion Engine Engine Light Ion Engine Propulsion Flight Unit Leg Aluminum Leg Flight Unit Flight Unit Utility Weight Redist. System Device Weight Redist. System Storage Small Storage Unit Processor Visual Processing Unit Weapon Light Assault Rifle Ballistic Gun Light Assault Rifle Piercing Weapon Heavy Pick Build | -11 -10 -9 -8 -7 -6 -6 -6 ------- Run | Scr Mat Mat Mat Fac Fac Low Low Slots Evolved 8 | . . 2 2 2 2 . . Power 2 | . . 1 . . 1 . . Propulsion 5 | . . 1 1 2 1 . . Utility 1 | . . . 1 . . . . Weapon . | . . . . . . . . Parts Attached 21 | . . 9 1 5 3 2 1 Power 5 | . . 2 . 1 1 1 . Engine 5 | . . 2 . 1 1 1 . Core . | . . . . . . . . Reactor . | . . . . . . . . Propulsion 8 | . . 4 1 2 . 1 . Treads . | . . . . . . . . Leg . | . . . . . . . . Wheel . | . . . . . . . . Hover . | . . . . . . . . Flight 8 | . . 4 1 2 . 1 . Utility 4 | . . 1 . 2 1 . . Device 3 | . . . . 2 1 . . Storage . | . . . . . . . . Processor 1 | . . 1 . . . . . Hackware . | . . . . . . . . Protection . | . . . . . . . . Artifact . | . . . . . . . . Weapon 4 | . . 2 . . 1 . 1 Energy Gun . | . . . . . . . . Energy Cannon . | . . . . . . . . Ballistic Gun 2 | . . 2 . . . . . Ballistic Cannon . | . . . . . . . . Launcher . | . . . . . . . . Special Weapon . | . . . . . . . . Impact Weapon . | . . . . . . . . Slashing Weapon . | . . . . . . . . Piercing Weapon 2 | . . . . . 1 . 1 Special Melee Weapon . | . . . . . . . . Unidentified Prototypes . | . . . . . . . . Parts Lost 13 | . . 2 . 3 . 5 3 Power 3 | . . . . 1 . 2 . Propulsion 6 | . . . . 1 . 2 3 Utility 1 | . . . . . . 1 . Weapon 3 | . . 2 . 1 . . . Highest Loss Streak 5 | . . 2 . 3 . 5 3 Average Slot Usage (%) 60 | . 14 34 72 77 73 69 . Engine 13 | . . 9 18 15 19 16 . Flight 26 | . . 12 36 37 33 29 . Device 7 | . . . . 13 13 10 . Processor 5 | . . 2 9 7 6 6 . Ballistic Gun 4 | . 14 10 9 2 . . . Piercing Weapon 1 | . . . . . . 4 . Naked Turns 20 | . . 20 . . . . . Heaviest Build 21 | 13 2 9 9 9 21 21 19 Greatest Support 28 | 20 3 12 16 28 23 23 20 Greatest Overweight (x) 1 | . . . . . . 1 . Average Overweight (x) . | . . . . . . . . Largest Inventory Capacity 6 | . 6 4 4 4 4 4 4 Average Capacity 4 | . 4 4 4 4 4 4 4 Most Carried 6 | . 6 4 3 4 4 4 4 Average Carried 3 | . 3 3 3 3 3 3 3 Final Capacity 6 | 6 4 4 4 4 4 4 4 Final Carried 6 | 6 3 4 3 4 4 4 3 Class Distribution -------------------- 53% | Scavenger-Sprinter 19% | Scavenger-Mutant 19% | Mutant 7% | Sprinter Dominant Class ---------------- Mutant | -10/Materials Scavenger-Mutant | -9/Materials Scavenger-Sprinter | -8/Materials Scavenger-Sprinter | -7/Factory Scavenger-Sprinter | -6/Factory Scavenger-Sprinter | -6/Lower Caves Scavenger-Sprinter | -6/Lower Caves Resources | -11 -10 -9 -8 -7 -6 -6 -6 ----------- Run | Scr Mat Mat Mat Fac Fac Low Low Matter Collected 386 | 196 . 53 . . 127 10 . Remotely . | . . . . . . . . Salvage Created 170 | . . 71 . . . 79 20 Parts 15 | . . 8 . . . 5 2 Haulers Intercepted . | . . . . . . . . Recyclers Shooed . | . . . . . . . . Parts Field Recycled . | . . . . . . . . Retrieved Matter . | . . . . . . . . Parts Self-Destructed 4 | . . . . . . 4 . Prevented . | . . . . . . . . Kills | -11 -10 -9 -8 -7 -6 -6 -6 ------- Run | Scr Mat Mat Mat Fac Fac Low Low Combat Hostiles Destroyed 8 | . . 4 . . . 3 1 Melee 5 | . . 1 . . . 3 1 Guns 3 | . . 3 . . . . . Classes Destroyed 1 | . . 1 . . . . . Swarmer 8 | . . 4 . . . 3 1 Best Kill Streak 4 | . . 4 . . . 3 1 Combat Bots Only 4 | . . 4 . . . 3 1 Max Kills in Single Turn 1 | . . 1 . . . 1 1 Gunslinging . | . . . . . . . . Exploded . | . . . . . . . . Melee 1 | . . 1 . . . 1 1 Uniques/NPCs Destroyed . | . . . . . . . . Combat | -11 -10 -9 -8 -7 -6 -6 -6 -------- Run | Scr Mat Mat Mat Fac Fac Low Low Damage Taken 1089 | . 33 513 29 94 . 339 81 Core 428 | . 12 301 15 13 . 69 18 Absorbed by Shields . | . . . . . . . . Core Remaining (%) 82 | 100 95 24 97 98 . . . Volleys Fired 12 | . . 12 . . . . . Largest 2 | . . 2 . . . . . Hottest 40 | . . 40 . . . . . Shots Fired 17 | . . 17 . . . . . Gun 17 | . . 17 . . . . . Cannon . | . . . . . . . . Launcher . | . . . . . . . . Special . | . . . . . . . . Kinetic 17 | . . 17 . . . . . Thermal . | . . . . . . . . Explosive . | . . . . . . . . Electromagnetic . | . . . . . . . . Robot Hit Streak 1 | . . 1 . . . . . Robot Miss Streak 3 | . . 3 . . . . . Penetration Max . | . . . . . . . . Secondary Targets . | . . . . . . . . Shots Hit Robots 13 | . . 6 . . . 6 1 Core Hits 11 | . . 7 . . . 3 1 Critical Hits . | . . . . . . . . Critical Kills . | . . . . . . . . Critical Parts Destroyed . | . . . . . . . . Melee Attacks 11 | . . . . . . 10 1 Impact . | . . . . . . . . Slashing . | . . . . . . . . Piercing 11 | . . . . . . 10 1 Sneak Attacks . | . . . . . . . . Combat Hostiles . | . . . . . . . . Follow-up Attacks . | . . . . . . . . Damage Inflicted 303 | . . 64 . . . 204 35 Guns 39 | . . 39 . . . . . Cannons . | . . . . . . . . Explosions . | . . . . . . . . Melee 239 | . . . . . . 204 35 Ramming 25 | . . 25 . . . . . Kinetic 39 | . . 39 . . . . . Thermal . | . . . . . . . . Explosive . | . . . . . . . . Electromagnetic . | . . . . . . . . Impact . | . . . . . . . . Slashing . | . . . . . . . . Piercing 239 | . . . . . . 204 35 Highest Corruption 2 | . . 2 . . . . . Average Corruption 2 | . . 2 . . . . . Corruption Purged . | . . . . . . . . Effects 1 | . . 1 . . . . . Data Loss (minor) 1 | . . 1 . . . . . Overload Shots . | . . . . . . . . Overflow Damage . | . . . . . . . . Projectiles . | . . . . . . . . Explosions . | . . . . . . . . Melee . | . . . . . . . . Knockbacks . | . . . . . . . . Impact . | . . . . . . . . Kinetic . | . . . . . . . . Secondary . | . . . . . . . . Self-Inflicted Damage 11 | . . 11 . . . . . Shots . | . . . . . . . . Rammed 12 | . . 12 . . . . . Targets Rammed 12 | . . 12 . . . . . Kicked . | . . . . . . . . Crushed . | . . . . . . . . Highest Temperature 197 | . . . 4 4 135 197 . Average Temperature 88 | . . . 4 2 78 101 . Received Heat Transfer 102 | . 18 12 9 27 . 36 . Siege Activations . | . . . . . . . . Robots Corrupted . | . . . . . . . . Combat Hostiles . | . . . . . . . . Parts Fried . | . . . . . . . . Impact Corruptions . | . . . . . . . . Robots Melted . | . . . . . . . . Combat Hostiles . | . . . . . . . . Parts Melted . | . . . . . . . . Heat Transferred . | . . . . . . . . Parts Sabotaged . | . . . . . . . . Parts Stolen . | . . . . . . . . Parts Stripped . | . . . . . . . . Power Chain Reactions . | . . . . . . . . Missiles Intercepted . | . . . . . . . . Alert | -11 -10 -9 -8 -7 -6 -6 -6 ------- Run | Scr Mat Mat Mat Fac Fac Low Low Peak Influence 124 | . 39 124 107 67 47 . . Average Influence 48 | . 17 60 74 45 34 . . Maximum Alert Level . | . . . . . . . . Low Security (%) 100 | . 100 100 100 100 100 . . Level 1 . | . . . . . . . . Level 2 . | . . . . . . . . Level 3 . | . . . . . . . . Level 4 . | . . . . . . . . Level 5 . | . . . . . . . . High Security . | . . . . . . . . Max Security . | . . . . . . . . Squads Dispatched 2 | . 1 1 . . . . . Investigation . | . . . . . . . . Extermination . | . . . . . . . . Reinforcement 2 | . 1 1 . . . . . Assault . | . . . . . . . . Garrison . | . . . . . . . . Intercept . | . . . . . . . . Construction Impeded . | . . . . . . . . Haulers Reinforced . | . . . . . . . . Stealth | -11 -10 -9 -8 -7 -6 -6 -6 --------- Run | Scr Mat Mat Mat Fac Fac Low Low Distress Signals 1 | . 1 . . . . . . Communications Jammed . | . . . . . . . . Distress Signals . | . . . . . . . . Times Spotted 35 | . 4 13 3 4 . 8 3 Peak Tracking Total 8 | . 3 8 3 3 . 3 3 Tactical Retreats 3 | . . 1 . 1 . 1 . Traps | -11 -10 -9 -8 -7 -6 -6 -6 ------- Run | Scr Mat Mat Mat Fac Fac Low Low Traps Triggered 1 | . . 1 . . . . . Indirectly . | . . . . . . . . Trap Hack Attempts . | . . . . . . . . Triggered . | . . . . . . . . Disarmed . | . . . . . . . . Reprogrammed . | . . . . . . . . Reused . | . . . . . . . . Traps Extracted . | . . . . . . . . Installed . | . . . . . . . . Triggered . | . . . . . . . . Machines | -11 -10 -9 -8 -7 -6 -6 -6 ---------- Run | Scr Mat Mat Mat Fac Fac Low Low Machines Disabled . | . . . . . . . . Max in Single Turn . | . . . . . . . . Machines Sabotaged . | . . . . . . . . Garrisons Compromised . | . . . . . . . . Overloaded Fab Kills . | . . . . . . . . Fab Network Shutdowns . | . . . . . . . . Hacking | -11 -10 -9 -8 -7 -6 -6 -6 --------- Run | Scr Mat Mat Mat Fac Fac Low Low Machines Accessed 8 | . 1 2 2 2 1 . . Terminals 7 | . 1 2 2 2 . . . Fabricators . | . . . . . . . . Repair Stations . | . . . . . . . . Recycling Units . | . . . . . . . . Scanalyzers . | . . . . . . . . Garrison Access 1 | . . . . . 1 . . Total Hacks 17 | . 1 3 5 7 1 . . Successful 8 | . 1 1 2 3 1 . . Failed 9 | . . 2 3 4 . . . Catastrophic 2 | . . 1 . 1 . . . Database Lockouts . | . . . . . . . . Manual 11 | . 1 1 3 6 . . . Terminals 16 | . 1 3 5 7 . . . Fabricators . | . . . . . . . . Repair Stations . | . . . . . . . . Recycling Units . | . . . . . . . . Scanalyzers . | . . . . . . . . Garrison Access 1 | . . . . . 1 . . Terminal Hacks 5 | . 1 1 1 2 . . . Level Access Points 3 | . 1 1 . 1 . . . Emergency Access Points 1 | . . . . 1 . . . Zone Layout 1 | . . . 1 . . . . Fabricator Hacks . | . . . . . . . . Repair Station Hacks . | . . . . . . . . Recycling Unit Hacks . | . . . . . . . . Scanalyzer . | . . . . . . . . Garrison Access Hacks 1 | . . . . . 1 . . Unlock Access 1 | . . . . . 1 . . Unauthorized Hacks 2 | . . . 1 1 . . . Terminals 2 | . . . 1 1 . . . Botnet 2 | . . . 1 1 . . . Fabricators . | . . . . . . . . Repair Stations . | . . . . . . . . Recycling Units . | . . . . . . . . Scanalyzers . | . . . . . . . . Garrison Access . | . . . . . . . . Data Cores Recovered . | . . . . . . . . Used . | . . . . . . . . Hacking Detections 5 | . . 2 1 2 . . . Full Trace Events . | . . . . . . . . Feedback Events . | . . . . . . . . Feedback Blocked . | . . . . . . . . Robot Schematics Acquired . | . . . . . . . . Robots Built . | . . . . . . . . Matter . | . . . . . . . . Time . | . . . . . . . . Total Robot Build Rating . | . . . . . . . . Part Schematics Acquired . | . . . . . . . . Parts Built . | . . . . . . . . Matter . | . . . . . . . . Time . | . . . . . . . . Total Part Build Rating . | . . . . . . . . Parts Repaired . | . . . . . . . . Time . | . . . . . . . . Parts Recycled . | . . . . . . . . Recycled Matter . | . . . . . . . . Retrieved Matter . | . . . . . . . . Retrieved Components . | . . . . . . . . Parts Scanalyzed . | . . . . . . . . Part Schematics Acquired . | . . . . . . . . Parts Damaged . | . . . . . . . . Bothacking | -11 -10 -9 -8 -7 -6 -6 -6 ------------ Run | Scr Mat Mat Mat Fac Fac Low Low Used RIF Installer . | . . . . . . . . Robots Hacked . | . . . . . . . . Non-combat . | . . . . . . . . Combat . | . . . . . . . . Robot Hacks Applied . | . . . . . . . . Relay Couplers Released . | . . . . . . . . Robots Rewired . | . . . . . . . . Allies Hacked . | . . . . . . . . Hacks Repelled . | . . . . . . . . Allies | -11 -10 -9 -8 -7 -6 -6 -6 -------- Run | Scr Mat Mat Mat Fac Fac Low Low Total Allies . | . . . . . . . . Largest Group . | . . . . . . . . Highest-Rated Group . | . . . . . . . . Highest-Rated Ally . | . . . . . . . . Total Orders . | . . . . . . . . Ally Attacks . | . . . . . . . . Total Damage . | . . . . . . . . Kills . | . . . . . . . . Allies Corrupted . | . . . . . . . . Allies Melted . | . . . . . . . . Intel | -11 -10 -9 -8 -7 -6 -6 -6 ------- Run | Scr Mat Mat Mat Fac Fac Low Low Robot Analysis Total . | . . . . . . . . Derelict Logs Recovered . | . . . . . . . . Drone Launches . | . . . . . . . . Drone Recoveries . | . . . . . . . . Exploration | -11 -10 -9 -8 -7 -6 -6 -6 ------------- Run | Scr Mat Mat Mat Fac Fac Low Low Turns Passed 596 | . 43 133 39 173 66 135 7 Spaces Moved 1451 | 1 77 195 121 492 216 340 9 Core 140 | . 77 63 . . . . . Treads . | . . . . . . . . Legs 1 | 1 . . . . . . . Wheels . | . . . . . . . . Hover . | . . . . . . . . Flight 1310 | . . 132 121 492 216 340 9 Fastest Speed 28 | 120 50 34 31 28 28 28 31 Average Speed 32 | 120 50 39 31 31 28 29 31 Slowest Speed 120 | 120 50 50 31 34 34 114 31 Overloaded Moves . | . . . . . . . . Propulsion Burnouts . | . . . . . . . . Robots Hopped 15 | . . 5 1 5 4 . . Cave-ins Triggered . | . . . . . . . . Exploration Rate (%) 21 | 2 21 32 21 17 10 64 5 Regions Visited 7 Branch Regions 2 Pre-discovered Areas . | . . . . . . . . Known Exits Taken 3 | . 1 1 . 1 . . . Unknown Exits Taken 4 | 1 . . 1 . 1 1 . Scrap Searched 1 | . . . . . . 1 . Spaces Dug . | . . . . . . . . Terrain Destroyed . | . . . . . . . . Melee . | . . . . . . . . Projectile . | . . . . . . . . AOE . | . . . . . . . . Actions | -11 -10 -9 -8 -7 -6 -6 -6 --------- Run | Scr Mat Mat Mat Fac Fac Low Low Total 1518 | . 85 228 120 503 216 355 11 Wait 12 | . . . . 9 . 3 . Move 1414 | . 76 184 118 481 207 339 9 Hop 15 | . . 5 1 5 4 . . Pick Up 9 | . . 5 . 3 1 . . Fast Attach 10 | . . 4 . 3 2 1 . Attach 10 | . . 4 1 2 1 1 1 Detach 2 | . 1 . . . . 1 . Swap 1 | . . 1 . . . . . Drop 10 | . 8 1 . . 1 . . Fire 12 | . . 12 . . . . . Melee 11 | . . . . . . 10 1 Ram 12 | . . 12 . . . . . Kick . | . . . . . . . . Crush . | . . . . . . . . Escape Stasis . | . . . . . . . . Rewire . | . . . . . . . . Trap . | . . . . . . . . Miscellaneous . | . . . . . . . . Route ------- -11/Scrapyard -10/Materials (discovered 3 exits: *Mat x3) -9/Materials (discovered 3 exits: *Mat x3) -8/Materials -7/Factory (discovered 4 exits: *Fac x4) -6/Factory (discovered 2 exits: [*Low] / Gar) -6/Lower Caves -6/Lower Caves History --------- Turn | Location | Event 1 | -11/Scrapyard | Discovered new exit (range 0) 1 | -11/Scrapyard | Entered Materials 17 | -10/Materials | Identified exit to Materials 44 | -10/Materials | Entered another Materials area 44 | -9/Materials | Evolved 2 slots: Power x1, Propulsion x1 102 | -9/Materials | Core integrity fell below 50% 159 | -9/Materials | Identified exit to Materials 177 | -9/Materials | Entered another Materials area 177 | -8/Materials | Evolved 2 slots: Propulsion x1, Utility x1 210 | -8/Materials | Discovered new exit (range 16) 216 | -8/Materials | Entered Factory 216 | -7/Factory | Evolved 2 slots: Propulsion x2 245 | -7/Factory | Identified exit to Factory 313 | -7/Factory | Lost 3 parts (1p1n1w) 389 | -7/Factory | Entered another Factory area 389 | -6/Factory | Evolved 2 slots: Power x1, Propulsion x1 411 | -6/Factory | Identified exit to Garrison 441 | -6/Factory | Spotted B-75 Beast 446 | -6/Factory | Discovered new exit (range 17) 455 | -6/Factory | Entered Lower Caves 474 | -6/Lower Caves | Encountered a Warlord checkpoint 586 | -6/Lower Caves | Lost 5 parts (2p2n1u) 590 | -6/Lower Caves | Discovered new exit (range 3) 590 | -6/Lower Caves | Entered another Lower Caves area 597 | -6/Lower Caves | Self-destructed Last Messages --------------- 00537_ VTOL Module fries itself beyond repair. 00538_ Ion Engine destroyed. 00539_ S-27 Virus destroyed. 00543_ Acquired VTOL Module. 00543_ Weight Redist. System destroyed. 00552_ Lgt. Nuclear Core fries itself beyond repair. 00552_ Autogun fries itself beyond repair. 00555_ Lgt. Ion Engine destroyed. 00557_ S-27 Virus destroyed. 00562_ Acquired 10 matter. 00565_ Lgt. Nuclear Core fries itself beyond repair. 00590_ EXIT=FOUND LOCATION=UNKNOWN GOAL=ESCAPE 00592_ C-30 ARC bursts open, deploying its payload. 00592_ S-27 Virus unfolds itself. 00593_ Flight Unit destroyed. 00594_ S-27 Virus destroyed. 00596_ VTOL Module destroyed. 00596_ Xenon Bombardment Thruster destroyed. Map ----- +----------------------------------------------------+ | ?????????????????????????????????????????????????? | | ?????????????????????????????????????????????????? | | ?????????????????????????????????????????????????? | | ?????????????????????????????????????????????????? | | ?????????????????????????????????????????????????? | | ?????????????????????????????????????????????????? | | ??????????????????????????????????####???????????? | | ?????????????????????????????????? #???????????? | | ?????????????????????????????????? " #???????????? | | ?????????????????????????????????? " ##??????????? | | ?????????????????????????????????" ##?????????? | | ???????????????????????###???????"" ##????????? | | ???????????????????????# ??????? ##???????? | | ???????????????????????# ??????? #???????? | | ???????????????????????# ??????? ????????? | | ????????????????????#### ?????## #??????????? | | ??????????????????### # #???## #???????????? | | ??????????????# ### #???# #????????????? | | ?????????????# ##### ##????????????? | | ?????????????? ##?????????????? | | ??????????????????????## ##??????????????? | | ???????????????????????# ## #???????????????? | | ??????????????????????## #### ?????????????? | | ???????????????????#### s##??? #??????????? | | ??????????????????## ##???? #??????????? | | ??????????????????# @##?????# ? #?????????? | | ??????????????????# [%##???????? ? #?????????? | | ??????????????????## *?????????? ? #????????? | | ????????????????? ????????????###??????????? | | ??????????????? s% #?????????????????????????? | | ??????????????####### ??????????????????????????? | | ????????????????????# ???????????????????????????? | | ????????????????????# ???????????????????????????? | | ???????????????????? ????????????????????????????? | | ??????????????????? ?????????????????????????????? | | ???????????????????#?????????????????????????????? | | ?????????????????????????????????????????????????? | | ?????????????????????????????????????????????????? | | ?????????????????????????????????????????????????? | | ?????????????????????????????????????????????????? | | ?????????????????????????????????????????????????? | | ?????????????????????????????????????????????????? | | ?????????????????????????????????????????????????? | | ?????????????????????????????????????????????????? | | ?????????????????????????????????????????????????? | | ?????????????????????????????????????????????????? | | ?????????????????????????????????????????????????? | | ?????????????????????????????????????????????????? | | ?????????????????????????????????????????????????? | | ?????????????????????????????????????????????????? | +----------------------------------------------------+ Best States ------------- Heat Dissipation 37 Coolant Potential 65 Energy Generation 24 Energy Capacity 450 Matter Stores 300 Matter Capacity 300 Sight Range 18 Terrain Scan Density 10 Evasion (%) 64 Item Schematics ----------------- None Robot Schematics ------------------ None Fabricated ------------ Nothing Alien Tech Used ----------------- None Achievements -------------- None Challenges ------------ None Game ------ Seed ShrapnelProtonCleaver Manual? 0 Play Time 00:11:31 Cumulative 829.4 hours Start 2020.07.31 @ 20:40:59 End 2020.07.31 @ 20:52:34 Sessions 1 Manual Loads 0 Difficulty Rogue Special Mode None Game No. 242 Rogue 242 Adventurer 0 Explorer 0 Win Type - Total 45 Types 33/1/3/3/3/1/1 Lore% 97 Gallery% 99 Achievement% 95 Wizard Run 0 Options --------- ASCII 0 Keyboard 1 Movement Numpad Keybinds 0 Fullscreen 1 Font 18/SmallcapsGlow Map View 76x50 Tactical HUD 1 Map Filters NONE Filters NONE Steam 1 RUN: 8338c8d0-5919-44e7-a5ee-111b22662a38